fUST/lending_fUST_20260214
["ID","MTS","AMOUNT","RATE_DAILY","PERIOD"]
[405344603,1771028493708,1500.0,0.00014368,2]
[405344604,1771028493760,1000.0,0.00013821,2]
[405344605,1771028493816,2000.0,0.00014916,2]
[405344606,1771028526266,411.14838567,0.00013699,2]
[405344607,1771028527026,500.0,0.00013699,2]
[405344608,1771028527079,1000.0,0.00014247,2]
[405344609,1771028527134,825.6354297,0.00014795,2]
[405344610,1771028527271,500.0,0.00013699,2]
[405344611,1771028527306,1000.0,0.00014247,2]
[405344612,1771028527356,1500.0,0.00014795,2]
[405344613,1771028527408,155.25444996,0.00015342,2]
[405344614,1771028527434,1844.74555004,0.00015342,2]
[405344615,1771028527466,792.52981682,0.0001589,2]
[405344616,1771028531649,526.54849135,0.00013699,2]
[405344617,1771028532205,500.0,0.00013699,2]
[405344618,1771028532244,238.46971449,0.00014247,2]
[405344619,1771028532804,500.0,0.00013699,2]
[405344620,1771028532851,1000.0,0.00014247,2]
[405344621,1771028532901,501.07051364,0.00014795,2]
[405344633,1771028708490,500.58253669,0.00013273,2]
[405344634,1771028716087,503.48490519,0.00013699,2]
[405344635,1771028716580,545.802568,0.00013699,2]
[405344636,1771028721842,500.0,0.00013273,2]
[405344637,1771028721894,1000.0,0.00013821,2]
[405344638,1771028721963,1500.0,0.00014368,2]
[405344639,1771028722008,2063.58171927,0.00014916,2]
[405344640,1771028722937,1000.0,0.00014247,2]
[405344641,1771028723021,500.0,0.00013699,2]
[405344642,1771028723083,1500.0,0.00014795,2]
[405344643,1771028723119,2000.0,0.00015342,2]
[405344644,1771028723185,2500.0,0.0001589,2]
[405344645,1771028723227,1500.0,0.00016438,2]
[405344646,1771028727226,500.0,0.00013273,2]
[405344647,1771028727273,1000.0,0.00013821,2]
[405344648,1771028727333,1500.0,0.00014368,2]
[405344649,1771028727381,483.18418451,0.00014916,2]
[405344650,1771028727411,1516.81581549,0.00014916,2]
[405344651,1771028727455,918.55711365,0.00015464,2]
[405344652,1771028768587,500.0,0.00013699,2]
[405344653,1771028768649,503.55924812,0.00014247,2]
[405344654,1771028770939,500.0,0.00013273,2]
[405344655,1771028771001,1000.0,0.00013821,2]
[405344656,1771028771058,1006.9962195,0.00014368,2]
[405344657,1771029007568,282.51127227,0.00013699,2]
[405344658,1771029009193,629.69540114,0.00013699,2]
[405344659,1771029010143,500.0,0.00013699,2]
[405344660,1771029010182,500.0,0.00013699,2]
[405344661,1771029010212,530.16327373,0.00014247,2]
[405344662,1771029010242,1002.78626778,0.00014247,2]
[405344663,1771029013128,217.40865874,0.00013273,2]
[405344679,1771029038300,-150.0,0.00025218,2]
[405344680,1771029038310,-306.2950415,0.00025467,2]
[405344681,1771029038319,-950.5662564,0.0002568,2]
[405344682,1771029038328,-321.80772636,0.00025817,2]
[405344683,1771029038338,-327.35777428,0.00025817,2]
[405344684,1771029038347,-338.01037104,0.00026658,2]
[405344685,1771029038357,-3415.2489778,0.00026748,2]
[405344686,1771029038367,-300.0,0.00026848,2]
[405344687,1771029038376,-581.9693765,0.00027005,2]
[405344688,1771029038386,-349.59769015,0.00027005,2]
[405344689,1771029038395,-177.0,0.00027218,2]
[405344690,1771029038406,-213.486154,0.00027508,2]
[405344691,1771029038415,-302.14709318,0.00027717,7]
[405344692,1771029038425,-161.0,0.000281,3]
[405344693,1771029038435,-401.0,0.00028304,3]
[405344694,1771029038445,-221.84851621,0.00028379,2]
[405344695,1771029038454,-168.61286524,0.00028379,2]
[405344696,1771029038464,-712.0,0.0002838,3]
[405344697,1771029038473,-290.04589,0.0002879,2]
[405344698,1771029038483,-3005.67122689,0.000288,2]
[405344699,1771029038493,-420.0,0.0002903,2]
[405344700,1771029038502,-204.0,0.00029218,2]
[405344701,1771029038511,-723.0,0.00029301,2]
[405344702,1771029038521,-424.0,0.00029301,2]
[405344703,1771029038530,-213.69,0.000297,7]
[405344704,1771029038539,-742.81808302,0.00029703,2]
[405344705,1771029038549,-3633.70502526,0.00029792,2]
[405344722,1771029046292,-417.32374423,0.00029792,2]
[405344723,1771029046302,-151.0,0.00029872,2]
[405344724,1771029046311,-151.0,0.00029872,2]
[405344725,1771029046321,-322.34292244,0.00029889,2]
[405344726,1771029064780,1092.31103417,0.00013821,2]
[405344727,1771029064809,500.0,0.00013273,2]
[405344728,1771029068283,500.0,0.00013699,2]
[405344729,1771029068351,500.51974168,0.00014247,2]
[405344730,1771029068407,501.69807982,0.00013699,2]
[405344731,1771029068442,500.0,0.00013699,2]
[405344732,1771029068479,536.69780885,0.00014247,2]
[405344733,1771029069804,200.0,0.00013699,2]
[405344734,1771029070736,500.0,0.00013699,2]
[405344735,1771029070800,1000.5791948,0.00014247,2]
[405344736,1771029079992,500.0,0.00013273,2]
[405344737,1771029080097,1007.09333172,0.00013821,2]
[405344738,1771029084719,500.0,0.00030136,120]
[405344740,1771029124082,500.0,0.00013273,2]
[405344741,1771029124369,500.0,0.00013699,2]
[405344742,1771029124423,501.3003251,0.00014247,2]
[405344743,1771029130021,500.0,0.00013699,2]
[405344744,1771029130078,547.31858862,0.00014247,2]
[405344745,1771029130103,452.68141138,0.00014247,2]
[405344746,1771029130132,1500.0,0.00014795,2]
[405344747,1771029130180,2000.0,0.00015342,2]
[405344748,1771029130235,1066.59202503,0.0001589,2]
[405344749,1771029132384,491.16064446,0.00013273,2]
[405344750,1771029364853,500.0,0.00013699,2]
[405344751,1771029364891,1000.0,0.00014247,2]
[405344752,1771029364945,214.61377282,0.00014795,2]
[405344753,1771029366462,500.0,0.00013273,2]
[405344754,1771029366494,327.55968485,0.00013821,2]
[405344755,1771029366521,672.44031515,0.00013821,2]
[405344756,1771029366549,840.84759657,0.00014368,2]
[405344757,1771029367504,150.0,0.00017808,2]
[405344758,1771029367565,250.0,0.00018356,2]
[405344759,1771029367620,400.0903073,0.00018904,2]
[405344760,1771029368239,500.0,0.00013273,2]
[405344761,1771029368276,1000.0,0.00013821,2]
[405344762,1771029368368,807.07897942,0.00014368,2]
[405344763,1771029370474,150.0,0.00013699,2]
[405344764,1771029370505,250.0,0.00014247,2]
[405344765,1771029370549,228.93136157,0.00014795,2]
[405344766,1771029370909,500.0,0.00013273,2]
[405344767,1771029390960,500.0,0.00013699,2]
[405344768,1771029390989,500.85223757,0.00014247,2]
[405344769,1771029401411,500.0,0.00013273,2]
[405344770,1771029401461,581.50230822,0.00014916,2]
[405344771,1771029401525,1000.0,0.00013821,2]
[405344772,1771029401579,1500.0,0.00014368,2]
[405344773,1771029543986,500.0,0.00013273,2]
[405344774,1771029544022,1000.0,0.00013821,2]
[405344775,1771029544077,1587.64930692,0.00014368,2]
[405344776,1771029603971,500.0,0.00013699,2]
[405344777,1771029604028,702.83775976,0.00014247,2]
[405344778,1771029606678,448.42218987,0.00013699,2]
[405344779,1771029606840,500.0,0.00013699,2]
[405344780,1771029606869,1000.0,0.00014247,2]
[405344781,1771029606933,616.19990478,0.00014795,2]
[405344782,1771029607025,500.0,0.00013273,2]
[405344783,1771029607150,500.0,0.00013273,2]
[405344784,1771029607184,1000.0,0.00013821,2]
[405344785,1771029607234,1003.65017484,0.00014368,2]
[405344786,1771029610061,500.0,0.00013699,2]
[405344787,1771029610115,1000.0,0.00014247,2]
[405344788,1771029610170,1500.0,0.00014795,2]
[405344789,1771029619720,303.10001603,0.000189,2]
[405344790,1771029619770,303.10001603,0.00019089,2]
[405344791,1771029619825,185.30527349,0.00019278,2]
[405344792,1771029671019,401.80036413,0.00013273,2]
[405344793,1771029674775,500.0,0.00013699,2]
[405344794,1771029674823,1000.0,0.00014247,2]
[405344795,1771029674878,1500.0,0.00014795,2]
[405344796,1771029674929,2036.74622098,0.00015342,2]
[405344797,1771029683296,500.0,0.00013699,2]
[405344798,1771029683351,1000.0,0.00014247,2]
[405344799,1771029683406,1646.5145419,0.00014795,2]
[405344800,1771029686259,500.77390481,0.00014247,2]
[405344801,1771029686297,500.0,0.00013699,2]
[405344802,1771029689975,500.0,0.00013273,2]
[405344803,1771029693021,327.28,0.00013699,2]
[405344804,1771029716300,303.10001603,0.000189,2]
[405344805,1771029716328,303.10001603,0.00019467,2]
[405344806,1771029716357,303.10001603,0.00019089,2]
[405344807,1771029716387,303.10001603,0.00019278,2]
[405344808,1771029716448,303.100016,0.00019656,2]
[405344809,1771029724294,500.0,0.00013699,2]
[405344810,1771029724322,413.21960917,0.00014247,2]
[405344811,1771029906753,500.0,0.00013273,2]
[405344812,1771029966332,500.0,0.00013273,2]
[405344813,1771029966363,1000.0,0.00013821,2]
[405344814,1771029966424,946.75001853,0.00014368,2]
[405344815,1771029967728,404.50815283,0.00013273,2]
[405344816,1771029968113,500.0,0.00013699,2]
[405344817,1771029968188,500.62336117,0.00014247,2]
[405344818,1771029990366,500.0,0.00030136,120]
[405344819,1771030015208,5000.0,0.00023011,2]
[405344820,1771030023352,5000.0,0.00023011,2]
[405344821,1771030028907,496.43208564,0.00013273,2]
[405344822,1771030031611,5000.0,0.00023011,2]
[405344823,1771030084867,500.0,0.00013273,2]
[405344824,1771030084900,879.88429686,0.00013821,2]
[405344825,1771030230157,5000.0,0.00023011,2]
[405344836,1771030238317,2048.39946411,0.00023011,2]
[405344837,1771030238346,-150.0,0.0002353,2]
[405344838,1771030238356,-177.0,0.0002553,2]
[405344839,1771030238366,-406.48610343,0.000257,2]
[405344840,1771030238376,-300.0,0.00026848,2]
[405344841,1771030238385,-248.06,0.000272,2]
[405344842,1771030238395,-427.9135979,0.0002722,2]
[405344843,1771030238404,-932.0802856,0.0002722,2]
[405344844,1771030238414,-464.55554678,0.00027463,2]
[405344845,1771030238424,-1889.01460094,0.00027463,2]
[405344863,1771030241231,-15067.64823614,0.00027463,2]
[405344864,1771030241241,-205.52369288,0.00027463,2]
[405344865,1771030241251,-204.0,0.0002753,2]
[405344866,1771030241260,-7190.31108899,0.00028219,2]
[405344867,1771030241269,-151.0,0.00028319,7]
[405344868,1771030241279,-2000.0,0.0002832,2]
[405344869,1771030241287,-2074.0,0.0002832,2]
[405344870,1771030241296,-872.49793686,0.0002832,2]
[405344871,1771030241305,-500.0,0.0002889,2]
[405344872,1771030241315,-420.0,0.0002903,2]
[405344873,1771030241325,-247.39065643,0.00029105,7]
[405344874,1771030241339,-500.0,0.00029179,2]
[405344875,1771030241350,-500.0,0.00029179,2]
[405344876,1771030241359,-372.12538168,0.00029197,2]
[405344877,1771030241369,-151.0,0.0002928,7]
[405344878,1771030241379,-162.940894,0.0002932,7]
[405344879,1771030241388,-231.0,0.0002953,2]
[405344880,1771030241398,-250.0,0.00029682,2]
[405344881,1771030241407,-250.0,0.00029682,2]
[405344882,1771030241416,-250.0,0.00029682,2]
[405344883,1771030241425,-250.0,0.00029682,2]
[405344884,1771030241435,-250.0,0.00029682,2]
[405344885,1771030241444,-250.0,0.00029682,2]
[405344886,1771030241453,-250.0,0.00029682,2]
[405344887,1771030241462,-500.0,0.00029682,2]
[405344888,1771030241472,-250.0,0.00029682,2]
[405344889,1771030241481,-500.0,0.00029682,2]
[405344890,1771030241490,-250.0,0.00029682,2]
[405344891,1771030241499,-500.0,0.00029682,2]
[405344892,1771030241509,-500.0,0.00029682,2]
[405344893,1771030241518,-500.0,0.00029682,2]
[405344894,1771030241527,-500.0,0.00029682,2]
[405344895,1771030241536,-250.0,0.00029682,2]
[405344896,1771030241546,-250.0,0.00029682,2]
[405344897,1771030241555,-500.0,0.00029682,2]
[405344898,1771030241564,-500.0,0.00029682,2]
[405344899,1771030241574,-194.72792766,0.00029682,2]
[405344900,1771030241583,-250.0,0.00029682,2]
[405344901,1771030241593,-250.0,0.00029682,2]
[405344902,1771030241602,-500.0,0.00029682,2]
[405344903,1771030241612,-500.0,0.00029682,2]
[405344904,1771030241621,-201.93286099,0.00029682,2]
[405344905,1771030241631,-250.0,0.00029682,2]
[405344906,1771030241640,-250.0,0.00029682,2]
[405344907,1771030241651,-500.0,0.00029682,2]
[405344908,1771030241661,-500.0,0.00029682,2]
[405344909,1771030241670,-209.40437684,0.00029682,2]
[405344910,1771030241680,-250.0,0.00029682,2]
[405344911,1771030241689,-250.0,0.00029682,2]
[405344912,1771030241698,-500.0,0.00029682,2]
[405344913,1771030241707,-500.0,0.00029682,2]
[405344914,1771030241717,-217.15233878,0.00029682,2]
[405344915,1771030241726,-250.0,0.00029682,2]
[405344916,1771030241736,-250.0,0.00029682,2]
[405344917,1771030241746,-500.0,0.00029682,2]
[405344918,1771030241754,-500.0,0.00029682,2]
[405344919,1771030241763,-225.18697532,0.00029682,2]
[405344920,1771030241890,-250.0,0.00029682,2]
[405344921,1771030241901,-250.0,0.00029682,2]
[405344922,1771030241911,-233.51889341,0.00029682,2]
[405344923,1771030241920,-250.0,0.00029682,2]
[405344924,1771030241930,-250.0,0.00029682,2]
[405344925,1771030241939,-242.15909246,0.00029682,2]
[405344926,1771030241948,-250.0,0.00029682,2]
[405344927,1771030241958,-250.0,0.00029682,2]
[405344928,1771030241967,-251.11897888,0.00029682,2]
[405344929,1771030241976,-250.0,0.00029682,2]
[405344930,1771030241986,-250.0,0.00029682,2]
[405344931,1771030241996,-260.4103811,0.00029682,2]
[405344932,1771030242005,-250.0,0.00029682,2]
[405344933,1771030242015,-250.0,0.00029682,2]
[405344934,1771030242024,-250.0,0.00029682,2]
[405344935,1771030242033,-270.0455652,0.00029682,2]
[405344936,1771030242043,-250.0,0.00029682,2]
[405344937,1771030242052,-250.0,0.00029682,2]
[405344938,1771030242061,-280.03725112,0.00029682,2]
[405344939,1771030242070,-250.0,0.00029682,2]
[405344940,1771030242079,-360.92826112,0.00029682,2]
[405344941,1771030242089,-396.81408045,0.00029682,2]
[405344942,1771030242098,-250.0,0.00029682,2]
[405344943,1771030242107,-250.0,0.00029682,2]
[405344944,1771030242117,-250.0,0.00029682,2]
[405344945,1771030242126,-250.0,0.00029682,2]
[405344946,1771030242135,-250.0,0.00029682,2]
[405344947,1771030242145,-250.0,0.00029682,2]
[405344948,1771030242154,-500.0,0.00029682,2]
[405344949,1771030242163,-43758.55388179,0.000297,2]
[405344950,1771030242173,-738.52376966,0.00029771,2]
[405344951,1771030242184,-1195.4,0.00029878,10]
[405344952,1771030242193,-7190.31108899,0.00029888,2]
[405344953,1771030242203,-500.0,0.00029889,2]
[405344954,1771030242212,-177.65707756,0.00029889,2]
[405344955,1771030242222,-32331.8472631,0.0002989,2]
[405344956,1771030242231,-600.0,0.00029892,30]
[405344957,1771030242241,-555.07192222,0.00029956,2]
[405344958,1771030242251,-290.04589,0.00030002,2]
[405344959,1771030242260,-40000.0,0.000301,2]
[405344960,1771030242269,-503.49621511,0.00030136,5]
[405344961,1771030242278,-500.0,0.00030136,5]
[405344962,1771030242287,-516.14243571,0.00030136,5]
[405344963,1771030242297,-626.13137947,0.00030136,5]
[405344964,1771030242306,-152.54291027,0.00030136,5]
[405344965,1771030242315,-499.4506049,0.00030136,5]
[405344966,1771030242324,-155.46171844,0.00030136,5]
[405344967,1771030242336,-1000.0,0.00030136,2]
[405344968,1771030242347,-500.0,0.00030136,5]
[405344969,1771030242357,-500.0,0.00030136,5]
[405344970,1771030242367,-500.0,0.00030136,5]
[405344971,1771030242378,-152.19113124,0.00030136,5]
[405344972,1771030242388,-500.0,0.00030136,5]
[405344973,1771030242397,-240.65995592,0.00030136,5]
[405344974,1771030242407,-502.17752179,0.00030136,5]
[405344975,1771030242416,-505.83527982,0.00030136,5]
[405344976,1771030242426,-502.8270053,0.00030136,5]
[405344977,1771030242435,-503.13205087,0.00030136,5]
[405344978,1771030242445,-336.98777463,0.00030136,5]
[405344979,1771030242455,-500.0,0.00030136,5]
[405344980,1771030242464,-442.71862356,0.00030136,5]
[405344981,1771030242474,-519.42938703,0.00030136,5]
[405344982,1771030242484,-501.73075013,0.00030136,5]
[405344983,1771030242493,-524.46976983,0.00030136,5]
[405344984,1771030242502,-500.0,0.00030136,5]
[405344985,1771030242512,-233.58926091,0.00030136,5]
[405344986,1771030242521,-533.67550415,0.00030136,5]
[405344987,1771030242531,-249.19683903,0.00030136,5]
[405344988,1771030242541,-526.4707696,0.00030136,5]
[405344989,1771030242550,-511.01409706,0.00030136,5]
[405344990,1771030242560,-512.65568518,0.00030136,5]
[405344991,1771030242570,-512.2603081,0.00030136,5]
[405344992,1771030242579,-519.52575017,0.00030136,5]
[405344993,1771030242588,-531.05111989,0.00030136,5]
[405344994,1771030242598,-525.57092405,0.00030136,5]
[405344995,1771030242607,-500.0,0.00030136,2]
[405344996,1771030242617,-524.35970008,0.00030136,5]
[405344997,1771030242627,-523.95367847,0.00030136,5]
[405344998,1771030242636,-500.0,0.00030136,5]
[405344999,1771030242645,-528.32188744,0.00030136,5]
[405345000,1771030242655,-505.32566961,0.00030136,5]
[405345001,1771030242665,-330.48786665,0.00030136,5]
[405345002,1771030242675,-559.681659,0.00030136,5]
[405345003,1771030242684,-517.61463132,0.00030136,5]
[405345004,1771030242694,-500.0,0.00030136,5]
[405345005,1771030242703,-502.18955014,0.00030136,5]
[405345006,1771030242712,-500.0,0.00030136,5]
[405345007,1771030242722,-500.0,0.00030136,5]
[405345008,1771030242732,-524.44804229,0.00030136,5]
[405345009,1771030242741,-150.141113,0.00030136,5]
[405345010,1771030242750,-521.24851014,0.00030136,5]
[405345011,1771030242759,-500.0,0.00030136,2]
[405345012,1771030242768,-477.24287505,0.00030136,5]
[405345013,1771030242778,-502.65558363,0.00030136,5]
[405345014,1771030242787,-500.0,0.00030136,5]
[405345015,1771030242796,-529.20995207,0.00030136,5]
[405345016,1771030242805,-516.82627264,0.00030136,5]
[405345017,1771030242815,-500.0,0.00030136,5]
[405345018,1771030242824,-614.88385952,0.00030136,5]
[405345019,1771030242833,-501.6626636,0.00030136,5]
[405345020,1771030242842,-501.32224807,0.00030136,5]
[405345021,1771030242851,-503.96911975,0.00030136,5]
[405345022,1771030242861,-328.21402164,0.00030136,5]
[405345023,1771030242870,-529.34512529,0.00030136,5]
[405345024,1771030242879,-156.91458816,0.00030136,5]
[405345025,1771030242889,-791.99,0.00030136,5]
[405345026,1771030242898,-501.77060288,0.00030136,5]
[405345027,1771030242907,-500.0,0.00030136,5]
[405345028,1771030242916,-500.0,0.00030136,2]
[405345029,1771030242925,-500.0,0.00030136,5]
[405345030,1771030242934,-502.58792684,0.00030136,3]
[405345031,1771030242943,-500.0,0.00030136,5]
[405345032,1771030242952,-500.0,0.00030136,2]
[405345034,1771030242961,-500.0,0.00030136,5]
[405345036,1771030242970,-757.11,0.00030136,5]
[405345037,1771030242980,-500.0,0.00030136,5]
[405345038,1771030242989,-502.08032972,0.00030136,5]
[405345039,1771030242999,-500.0,0.00030136,5]
[405345040,1771030243009,-247.87284043,0.00030136,5]
[405345041,1771030243018,-500.0542251,0.00030136,5]
[405345042,1771030243027,-540.765459,0.00030136,5]
[405345043,1771030243036,-500.0,0.00030136,5]
[405345044,1771030243046,-152.11881859,0.00030136,5]
[405345045,1771030243055,-500.0,0.00030136,5]
[405345046,1771030243064,-156.94716851,0.00030136,5]
[405345047,1771030243073,-500.0,0.00030136,5]
[405345048,1771030243082,-568.20337168,0.00030136,5]
[405345049,1771030243091,-503.80278657,0.00030136,5]
[405345050,1771030243102,-500.0,0.00030136,5]
[405345051,1771030243113,-500.0,0.00030136,5]
[405345052,1771030243123,-562.53024324,0.00030136,5]
[405345053,1771030243133,-502.95204598,0.00030136,5]
[405345054,1771030243142,-538.96,0.00030136,5]
[405345055,1771030243151,-517.23102334,0.00030136,5]
[405345056,1771030243160,-500.0,0.00030136,5]
[405345057,1771030243170,-500.0,0.00030136,5]
[405345058,1771030243180,-500.65774896,0.00030136,5]
[405345059,1771030243189,-500.0,0.00030136,5]
[405345060,1771030243199,-500.0,0.00030136,5]
[405345061,1771030243208,-500.0,0.00030136,5]
[405345062,1771030243217,-500.0,0.00030136,5]
[405345063,1771030243226,-181.82416139,0.00030136,5]
[405345064,1771030243236,-500.0,0.00030136,5]
[405345065,1771030243245,-1648.95,0.00030136,5]
[405345066,1771030243254,-296.08308296,0.00030136,5]
[405345067,1771030243264,-238.01991592,0.00030136,5]
[405345068,1771030243273,-508.52461356,0.00030136,5]
[405345069,1771030243283,-500.0,0.00030136,5]
[405345070,1771030243292,-512.30888814,0.00030136,5]
[405345071,1771030243301,-150.93947942,0.00030136,5]
[405345072,1771030243310,-526.00905172,0.00030136,5]
[405345073,1771030243319,-622.8129018,0.00030136,5]
[405345074,1771030243328,-500.0,0.00030136,5]
[405345075,1771030243339,-500.0,0.00030136,5]
[405345076,1771030243349,-500.0,0.00030136,5]
[405345077,1771030243358,-155.18904907,0.00030136,5]
[405345078,1771030243368,-500.0,0.00030136,5]
[405345079,1771030243379,-500.0,0.00030136,5]
[405345080,1771030243388,-500.0,0.00030136,5]
[405345081,1771030243398,-501.84679244,0.00030136,5]
[405345082,1771030243407,-180.50728162,0.00030136,5]
[405345083,1771030243419,-500.0,0.00030136,5]
[405345084,1771030243428,-502.99861005,0.00030136,5]
[405345085,1771030243437,-500.0,0.00030136,5]
[405345086,1771030243446,-246.70307592,0.00030136,5]
[405345087,1771030243455,-417.28537969,0.00030136,5]
[405345088,1771030243464,-514.63042629,0.00030136,5]
[405345089,1771030243474,-166.93172825,0.00030136,5]
[405345090,1771030243483,-500.0,0.00030136,5]
[405345091,1771030243492,-2152.05,0.00030136,5]
[405345092,1771030243501,-513.48747535,0.00030136,5]
[405345093,1771030243511,-462.67711727,0.00030136,5]
[405345094,1771030243520,-500.0,0.00030136,5]
[405345095,1771030243530,-500.0,0.00030136,5]
[405345096,1771030243539,-935.99,0.00030136,5]
[405345097,1771030243548,-500.0,0.00030136,5]
[405345098,1771030243558,-324.6046307,0.00030136,5]
[405345099,1771030243568,-249.89929754,0.00030136,5]
[405345100,1771030243577,-503.83690778,0.00030136,5]
[405345101,1771030243587,-1562.58,0.00030136,5]
[405345102,1771030243597,-1741.52,0.00030136,5]
[405345103,1771030243607,-596.74,0.00030136,5]
[405345104,1771030243618,-500.0,0.00030136,5]
[405345105,1771030243628,-558.33377386,0.00030136,5]
[405345106,1771030243637,-1000.0,0.00030136,2]
[405345107,1771030243647,-180.53433045,0.00030136,5]
[405345108,1771030243656,-511.71894017,0.00030136,5]
[405345109,1771030243666,-508.97896008,0.00030136,5]
[405345110,1771030243676,-501.41589579,0.00030136,5]
[405345111,1771030243685,-500.0,0.00030136,5]
[405345112,1771030243695,-235.12115558,0.00030136,5]
[405345113,1771030243705,-155.14554046,0.00030136,5]
[405345114,1771030243714,-505.8065471,0.00030136,5]
[405345115,1771030243723,-500.0,0.00030136,5]
[405345116,1771030243733,-500.0,0.00030136,5]
[405345117,1771030243742,-500.0,0.00030136,5]
[405345118,1771030243751,-7367.7,0.00030136,5]
[405345119,1771030243761,-1046.29,0.00030136,2]
[405345120,1771030243770,-506.6677672,0.00030136,5]
[405345121,1771030243780,-500.0,0.00030136,5]
[405345122,1771030243790,-500.0,0.00030136,2]
[405345124,1771030243799,-203.61731968,0.00030136,5]
[405345125,1771030243808,-500.0,0.00030136,5]
[405345126,1771030243818,-192.32,0.000302,7]
[405345127,1771030243827,-557.17,0.000303,14]
[405345128,1771030243836,-6876.21344484,0.000303,2]
[405345145,1771030269820,500.0,0.00013273,2]
[405345146,1771030275760,500.0,0.00013699,2]
[405345147,1771030275815,1000.0,0.00014247,2]
[405345148,1771030275862,1500.0,0.00014795,2]
[405345149,1771030275922,2000.0,0.00015342,2]
[405345150,1771030275977,2500.0,0.0001589,2]
[405345151,1771030282628,514.12636587,0.00013699,2]
[405345152,1771030282657,500.0,0.00013699,2]
[405345153,1771030282708,1027.96138248,0.00014247,2]
[405345154,1771030283353,500.0,0.00013699,2]
[405345155,1771030283427,500.32522198,0.00014247,2]
[405345156,1771030284134,500.0,0.00013699,2]
[405345157,1771030284187,556.85575586,0.00014247,2]
[405345158,1771030323433,500.0,0.00013699,2]
[405345159,1771030323489,919.15523469,0.00014247,2]
[405345160,1771030491915,303.10001603,0.00019467,2]
[405345161,1771030491951,303.10001603,0.00019278,2]
[405345162,1771030492013,303.10001603,0.00019089,2]
[405345163,1771030492069,303.10001603,0.000189,2]
[405345164,1771030492102,303.10001603,0.00019656,2]
[405345165,1771030509800,500.0,0.00013699,2]
[405345166,1771030509846,239.70521578,0.00014247,2]
[405345167,1771030564147,500.0,0.00013699,2]
[405345168,1771030566391,500.0,0.00013699,2]
[405345169,1771030566531,568.16448388,0.00014247,2]
[405345170,1771030588169,303.10001603,0.000189,2]
[405345171,1771030588226,303.10001603,0.00019089,2]
[405345172,1771030588277,303.10001603,0.00019278,2]
[405345173,1771030588330,303.10001603,0.00019467,2]
[405345174,1771030588386,303.10001603,0.00019656,2]
[405345175,1771030629683,151.55000802,0.0002,2]
[405345180,1771030759916,-150.0,0.00025306,2]
[405345181,1771030759941,-596.73191231,0.00025407,3]
[405345182,1771030759963,-1101.04859671,0.00025595,3]
[405345183,1771030759985,-5000.0,0.00025631,2]
[405345184,1771030760007,-1152.21949098,0.00025999,3]
[405345186,1771030779584,-453.14579014,0.00025999,3]
[405345187,1771030779605,-2109.68196553,0.00026403,3]
[405345188,1771030816785,150.38236857,0.00021918,2]
[405345189,1771030876021,500.0,0.00013273,2]
[405345190,1771030876080,1000.0,0.00013821,2]
[405345191,1771030876130,538.51283886,0.00014368,2]
[405345192,1771030883656,500.0,0.00013699,2]
[405345193,1771030883707,500.0,0.00014247,2]
[405345194,1771030883902,500.0,0.00013699,2]
[405345195,1771030883957,1000.0,0.00014247,2]
[405345196,1771030884009,435.1705014,0.00014795,2]